bitfinex/quotes_SOLUSD_20250829
["timestamp","ask_amount","ask_price","bid_price","bid_amount"]
[1756501608888,8.95157287,201.79,201.73,8.98157287]
[1756501609402,8.95157287,201.78,201.73,0.03]
[1756501609725,4.95687518,201.74,201.73,0.03]
[1756501609928,4.45687518,201.74,201.73,0.03]
[1756501610410,13.40844805,201.74,201.73,0.03]
[1756501610785,8.95157287,201.74,201.73,0.03]
[1756501610987,13.90828376,201.75,201.73,0.03]
[1756501611399,4.95671089,201.75,201.73,0.03]
[1756501611711,8.95157287,201.82,201.74,0.7]
[1756501611892,8.95157287,201.78,201.73,0.03]
[1756501612292,8.95157287,201.79,201.73,8.98157287]
[1756501612489,8.95157287,201.79,201.74,8.95157287]
[1756501612708,8.95157287,201.8,201.73,0.03]
[1756501612915,8.95157287,201.8,201.74,8.95157287]
[1756501613213,8.95157287,201.79,201.74,8.95157287]
[1756501613413,8.95157287,201.77,201.73,0.03]
[1756501613790,9.65157287,201.77,201.73,0.03]
[1756501614097,9.65157287,201.76,201.73,0.03]
[1756501614297,8.95157287,201.74,201.73,0.03]
[1756501614696,9.65157287,201.74,201.73,0.03]
[1756501615890,14.60844805,201.74,201.73,0.03]
[1756501616292,5.65687518,201.74,201.73,0.03]
[1756501616602,26.0,201.71,201.7,0.03]
[1756501616806,34.95157287,201.71,201.7,0.03]
[1756501617015,35.65157287,201.71,201.7,0.03]
[1756501617813,0.7,201.74,201.7,0.03]
[1756501618019,8.95157287,201.72,201.7,0.03]
[1756501618805,9.65157287,201.71,201.7,0.03]
[1756501619315,26.0,201.71,201.7,0.03]
[1756501619485,35.65157287,201.71,201.7,0.03]
[1756501620092,40.60918528,201.71,201.7,0.03]
[1756501621195,54.20477929,201.71,201.7,1e-08]
[1756501621399,54.20477929,201.71,201.68,0.03]
[1756501621721,54.20477929,201.71,201.52,0.89]
[1756501621722,26.0,201.66,201.52,0.89]
[1756501621899,8.95157287,201.59,201.53,9.64157287]
[1756501622089,8.95157287,201.61,201.55,8.95157287]
[1756501622514,0.67,201.6,201.56,0.69]
[1756501622824,26.0,201.62,201.52,9.84157287]
[1756501622825,8.95157287,201.58,201.52,9.84157287]
[1756501623322,8.95157287,201.58,201.53,0.69]
[1756501624513,8.95157287,201.59,201.54,8.95157287]
[1756501624710,5.62909813,201.65,201.58,8.95157287]
[1756501624912,26.0,201.64,201.58,8.95157287]
[1756501625117,34.95157287,201.64,201.58,8.95157287]
[1756501625317,8.95157287,201.63,201.57,9.64157287]
[1756501625502,8.95157287,201.58,201.52,0.2]
[1756501625714,8.95157287,201.56,201.52,0.2]
[1756501625916,8.95157287,201.58,201.52,9.15157287]
[1756501626107,26.67,201.62,201.54,8.95157287]
[1756501626309,8.95157287,201.59,201.52,0.2]
[1756501626504,8.95157287,201.58,201.53,8.95157287]
[1756501626708,8.95157287,201.59,201.54,8.95157287]
[1756501626905,8.95157287,201.59,201.54,9.64157287]
[1756501627308,8.95157287,201.58,201.53,8.95157287]
[1756501627625,0.67,201.63,201.57,8.95157287]
[1756501627807,8.95157287,201.65,201.6,8.95157287]
[1756501628015,51.88157287,201.65,201.6,8.95157287]
[1756501628206,0.67,201.65,201.62,8.95157287]
[1756501628402,56.84023145,201.67,201.62,8.95157287]
[1756501628602,55.325247,201.7,201.66,8.95157287]
[1756501628819,13.065247,201.7,201.66,8.95157287]
[1756501629011,0.67,201.7,201.67,8.95157287]
[1756501629213,82.16896181,201.72,201.67,8.95157287]
[1756501629413,0.67,201.71,201.67,8.95157287]
[1756501629724,0.67,201.71,201.62,0.69]
[1756501629725,0.67,201.71,201.66,8.95157287]
[1756501629915,0.67,201.7,201.64,0.69]
[1756501630116,73.21744967,201.72,201.67,8.95157287]
[1756501630311,0.67,201.71,201.67,8.95157287]
[1756501630518,0.67,201.71,201.66,8.95157287]
[1756501632402,68.26,201.72,201.67,8.95157287]
[1756501632606,68.26,201.72,201.64,0.69]
[1756501632607,9.62157287,201.71,201.65,8.95157287]
[1756501632810,0.67,201.7,201.65,8.95157287]
[1756501633008,0.67,201.69,201.65,8.95157287]
[1756501633221,82.83897582,201.72,201.67,8.95157287]
[1756501633418,0.67,201.71,201.66,8.95157287]
[1756501633621,82.16897582,201.72,201.67,8.95157287]
[1756501633833,8.95157287,201.7,201.65,8.95157287]
[1756501634016,13.90957347,201.7,201.65,8.95157287]
[1756501634221,14.57957347,201.7,201.65,8.95157287]
[1756501634925,26.0,201.71,201.69,8.95157287]
[1756501635110,26.0,201.71,201.68,8.95157287]
[1756501635310,26.0,201.71,201.59,25.99640974]
[1756501635311,26.0,201.68,201.66,0.03]
[1756501635510,51.05157287,201.67,201.66,0.03]
[1756501635830,26.0,201.64,201.54,15.598684]
[1756501636033,51.72157287,201.63,201.57,8.95157287]
[1756501636224,4.95982541,201.62,201.57,8.95157287]
[1756501636532,5.62982541,201.62,201.57,8.95157287]
[1756501636909,5.62982541,201.62,201.53,30.96183075]
[1756501636910,42.1,201.63,201.59,8.95157287]
[1756501637110,42.1,201.63,201.61,0.03]
[1756501637837,26.0,201.63,201.61,0.03]
[1756501639710,26.67,201.67,201.61,0.03]
[1756501639923,42.0,201.66,201.61,8.98157287]
[1756501640121,0.06,201.71,201.65,8.95157287]
[1756501640332,0.06,201.71,201.69,8.95157287]
[1756501641723,0.06,201.71,201.7,8.95157287]
[1756501642127,0.06,201.71,201.7,9.64157287]
[1756501642437,0.06,201.71,201.7,8.95157287]
[1756501643853,0.73,201.71,201.62,44.55541942]
[1756501644021,0.06,201.71,201.68,8.95157287]
[1756501644223,0.06,201.71,201.64,0.69]
[1756501644434,0.06,201.71,201.68,8.95157287]
[1756501645521,0.06,201.71,201.7,8.95157287]
[1756501645958,0.06,201.71,201.7,23.23716688]
[1756501647563,0.06,201.71,201.7,28.19502508]
[1756501647921,0.06,201.71,201.7,37.14659795]
[1756501648122,1e-08,201.71,201.7,37.14659795]
[1756501649041,1e-08,201.71,201.7,28.19502508]
[1756501649443,1e-08,201.71,201.7,14.28559401]
[1756501649622,1e-08,201.71,201.7,8.95157287]
[1756501650221,1e-08,201.71,201.6,21.35192876]
[1756501650222,1e-08,201.71,201.68,8.95157287]
[1756501650676,0.67000001,201.71,201.67,8.95157287]
[1756501651357,0.67000001,201.71,201.68,8.95157287]
[1756501652429,1e-08,201.71,201.64,30.95931768]
[1756501652653,1e-08,201.71,201.7,8.95157287]
[1756501652855,1e-08,201.71,201.69,8.95157287]
[1756501653947,1e-08,201.71,201.7,8.95157287]
[1756501654155,1e-08,201.71,201.67,4.95844971]
[1756501654156,1e-08,201.71,201.67,8.95157287]
[1756501654358,1e-08,201.71,201.64,30.95921193]
[1756501654569,1e-08,201.71,201.69,8.95157287]
[1756501654775,1e-08,201.71,201.7,22.54716688]
[1756501654937,1e-08,201.71,201.7,13.59559401]
[1756501655139,1e-08,201.71,201.7,8.95157287]
[1756501655653,1e-08,201.71,201.7,0.71]
[1756501655849,1e-08,201.71,201.7,14.61943107]
[1756501656052,1e-08,201.71,201.7,28.21502508]
[1756501656254,1e-08,201.71,201.7,23.25716688]
[1756501658274,1e-08,201.71,201.66,13.62559401]
[1756501658478,1e-08,201.71,201.68,8.95157287]
[1756501658682,0.67,201.7,201.67,8.95157287]
[1756501658966,0.67,201.69,201.66,0.03]
[1756501659148,1e-08,201.71,201.66,0.03]
[1756501659149,0.67,201.68,201.66,0.03]
[1756501659965,5.62844165,201.68,201.66,0.03]
[1756501660666,4.95800361,201.7,201.66,0.03]
[1756501660966,5.62800361,201.7,201.66,0.03]
[1756501661176,0.67,201.69,201.66,0.03]
[1756501661570,8.95157287,201.67,201.66,0.03]
[1756501661868,13.91016859,201.67,201.66,0.03]
[1756501662072,14.58016859,201.67,201.66,0.03]
[1756501662276,14.58016859,201.67,201.61,0.03]
[1756501662277,26.9766579,201.67,201.61,0.03]
[1756501662474,8.95157287,201.64,201.61,0.03]
[1756501662872,9.62157287,201.64,201.61,0.03]
[1756501663496,13.91016859,201.67,201.62,8.95157287]
[1756501663662,14.58016859,201.67,201.62,8.95157287]
[1756501663860,8.95157287,201.64,201.61,0.03]
[1756501664172,26.0,201.64,201.61,0.03]
[1756501664377,0.67,201.66,201.61,0.03]
[1756501664378,8.95157287,201.68,201.62,8.95157287]
[1756501664561,13.91004798,201.68,201.62,8.95157287]
[1756501664762,0.67,201.67,201.62,8.95157287]
[1756501665563,9.62157287,201.66,201.61,0.03]
[1756501665764,8.95157287,201.65,201.61,0.03]
[1756501666073,9.62157287,201.65,201.61,0.03]
[1756501666376,13.91031797,201.67,201.62,8.95157287]
[1756501666777,13.91031797,201.67,201.61,0.03]
[1756501666778,35.62157287,201.72,201.66,8.95157287]
[1756501666980,0.67,201.7,201.65,8.95157287]
[1756501667374,0.67,201.7,201.66,8.95157287]
[1756501667686,1e-08,201.71,201.67,8.95157287]
[1756501667883,1e-08,201.71,201.69,8.95157287]
[1756501668380,1e-08,201.71,201.67,4.95838807]
[1756501668555,1e-08,201.71,201.7,8.95157287]
[1756501669977,1e-08,201.71,201.7,28.21502508]
[1756501670475,0.06,201.74,201.71,13.59559401]
[1756501670785,0.06,201.74,201.73,48.54716688]
[1756501671163,0.06,201.74,201.73,40.30559401]
[1756501671385,0.06,201.74,201.73,49.25716688]
[1756501671888,0.06,201.79,201.73,49.25716688]
[1756501671889,0.06,201.79,201.74,18.55246919]
[1756501672063,0.06,201.79,201.78,22.54716688]
[1756501672688,0.06,201.79,201.78,23.25716688]
[1756501673283,0.06,201.79,201.78,8.95157287]
[1756501676158,0.06,201.79,201.78,9.66157287]
[1756501676574,0.06,201.79,201.78,23.25716688]
[1756501676871,0.06,201.82,201.79,13.59559401]
[1756501677177,0.06,201.82,201.81,22.54716688]
[1756501677689,0.06,201.82,201.81,23.25716688]
[1756501678186,0.06,201.82,201.81,28.21232271]
[1756501679165,0.06,201.82,201.68,4.05238469]
[1756501679490,8.95157287,201.79,201.74,8.95157287]
[1756501679791,0.06,201.82,201.77,8.95157287]
[1756501679988,0.67,201.81,201.77,8.95157287]
[1756501680171,0.67,201.8,201.77,8.95157287]
[1756501680370,0.67,201.8,201.73,18.55256351]
[1756501680371,0.67,201.8,201.76,8.95157287]
[1756501680592,0.67,201.8,201.75,8.95157287]
[1756501680793,0.67,201.79,201.76,8.95157287]
[1756501681172,9.68157287,201.82,201.77,8.95157287]
[1756501681499,0.06,201.82,201.81,8.95157287]
[1756501681673,0.06,201.82,201.81,9.61157287]
[1756501682192,0.06,201.82,201.81,27.50232271]
[1756501682964,0.06,201.82,201.81,28.16232271]
[1756501683678,0.06,201.82,201.81,23.20716688]
[1756501683976,0.06,201.82,201.73,12.39272348]
[1756501684176,0.06,201.82,201.81,8.95157287]
[1756501685196,0.06,201.82,201.78,4.95585025]
[1756501685402,0.06,201.82,201.81,13.45905259]
[1756501686391,0.06,201.82,201.79,46.83562669]
[1756501686589,0.73,201.82,201.81,13.45905259]
[1756501686782,0.67,201.81,201.7,13.59559401]
[1756501687096,0.06,201.82,201.8,13.45905259]
[1756501687294,0.06,201.82,201.81,27.7146466]
[1756501687694,0.06,201.82,201.8,26.0]
[1756501687892,0.73,201.82,201.8,13.45905259]
[1756501688589,0.67,201.81,201.78,13.45905259]
[1756501688774,0.67,201.81,201.79,13.45905259]
[1756501689369,0.67,201.81,201.8,13.45905259]
[1756501689691,0.06,201.82,201.79,13.45905259]
[1756501689892,0.73,201.82,201.8,13.45905259]
[1756501690273,0.73,201.82,201.79,13.45905259]
[1756501690274,0.67,201.81,201.79,13.45905259]
[1756501690481,0.67,201.8,201.76,0.03]
[1756501690707,0.67,201.8,201.76,18.44536402]
[1756501690891,0.06,201.82,201.79,13.45905259]
[1756501691401,0.73,201.82,201.79,13.45905259]
[1756501691606,0.73,201.82,201.78,13.45905259]
[1756501691776,0.67,201.81,201.78,13.45905259]
[1756501692617,0.67,201.81,201.78,8.45905259]
[1756501693197,0.06,201.82,201.78,8.45905259]
[1756501693521,0.73,201.82,201.78,8.45905259]
[1756501693716,0.73,201.82,201.77,13.45905259]
[1756501694614,0.06,201.82,201.77,13.45905259]
[1756501694803,0.73,201.82,201.77,13.45905259]
[1756501695724,0.67,201.81,201.76,13.48905259]
[1756501696012,13.45905259,201.79,201.76,0.03]
[1756501696209,0.67,201.8,201.76,13.48905259]
[1756501696409,14.18905259,201.82,201.76,13.48905259]
[1756501697115,0.73,201.82,201.77,13.45905259]
[1756501697308,0.67,201.81,201.77,13.45905259]
[1756501697506,0.67,201.8,201.76,0.03]
[1756501697711,13.45905259,201.77,201.76,0.03]
[1756501698108,14.12905259,201.77,201.76,0.03]
[1756501698304,26.0,201.74,201.73,0.03]
[1756501698498,39.45905259,201.74,201.73,0.03]
[1756501698819,40.12905259,201.74,201.73,0.03]
[1756501699617,45.08592777,201.74,201.73,0.03]
[1756501699815,27.0546466,201.72,201.71,0.03]
[1756501700114,68.9146466,201.72,201.71,0.03]
[1756501700299,68.9146466,201.72,201.63,0.03]
[1756501700300,26.0,201.69,201.63,0.03]
[1756501700492,13.45905259,201.64,201.63,0.03]
[1756501701199,14.12905259,201.64,201.63,0.03]
[1756501701511,19.08838605,201.64,201.63,0.03]
[1756501702216,14.12905259,201.64,201.63,0.03]
[1756501702514,5.62933346,201.64,201.63,0.03]
[1756501702690,19.08838605,201.64,201.63,0.03]
[1756501703519,14.12905259,201.64,201.63,0.03]
[1756501704322,19.08838605,201.64,201.63,0.03]
[1756501705404,42.55,201.66,201.63,0.03]
[1756501705622,26.0,201.62,201.61,0.03]
[1756501705803,34.94192684,201.62,201.55,0.2]
[1756501706115,8.94192684,201.56,201.55,0.2]
[1756501706492,26.0,201.64,201.55,0.2]
[1756501706719,26.0,201.6,201.55,0.2]
[1756501706896,8.94192684,201.6,201.55,9.14192684]
[1756501707102,8.94192684,201.61,201.56,9.60192684]
[1756501707327,8.94192684,201.61,201.56,0.66]
[1756501707528,8.94192684,201.6,201.56,0.66]
[1756501707821,8.94192684,201.6,201.55,9.14192684]
[1756501708019,8.94192684,201.6,201.55,9.80192684]
[1756501708211,8.94192684,201.6,201.56,0.03]
[1756501709017,47.50974717,201.63,201.57,0.66]
[1756501709218,0.67,201.63,201.58,8.94192684]
[1756501709426,13.90131576,201.64,201.58,8.94192684]
[1756501709624,8.94192684,201.63,201.58,9.60192684]
[1756501709814,8.94192684,201.61,201.56,8.97192684]
[1756501710124,0.67,201.62,201.56,8.97192684]
[1756501710302,9.61192684,201.62,201.56,9.63192684]
[1756501710509,8.94192684,201.63,201.58,8.94192684]
[1756501710707,55.78131576,201.64,201.59,8.94192684]
[1756501710929,56.44131576,201.64,201.59,8.94192684]
[1756501711125,8.94192684,201.6,201.56,0.03]
[1756501711516,9.60192684,201.6,201.56,0.03]
[1756501711821,8.94192684,201.62,201.57,8.94192684]
[1756501712027,8.94192684,201.63,201.57,8.94192684]
[1756501712228,13.9019229,201.62,201.57,8.94192684]
[1756501712428,9.60192684,201.61,201.56,8.97192684]
[1756501712602,8.94192684,201.61,201.56,8.97192684]
[1756501712807,0.66,201.61,201.56,8.97192684]
[1756501713020,14.56152914,201.63,201.57,8.94192684]
[1756501713334,8.94192684,201.62,201.56,8.97192684]
[1756501713706,56.44152914,201.63,201.57,8.94192684]
[1756501714127,14.56152914,201.63,201.57,8.94192684]
[1756501714304,8.94192684,201.62,201.57,8.94192684]
[1756501714625,76.82192684,201.64,201.58,9.60192684]
[1756501715000,34.94192684,201.64,201.59,8.94192684]
[1756501715224,55.78101652,201.65,201.59,0.66]
[1756501715424,13.90101652,201.65,201.59,9.60192684]
[1756501715724,8.94192684,201.65,201.59,9.60192684]
[1756501715923,8.94192684,201.64,201.59,8.94192684]
[1756501716124,8.94192684,201.63,201.58,8.94192684]
[1756501716326,8.94192684,201.63,201.59,0.66]
[1756501716515,9.60192684,201.63,201.58,8.94192684]
[1756501716906,9.60192684,201.63,201.56,0.69]
[1756501717106,8.94192684,201.58,201.56,0.03]
[1756501717534,0.66,201.57,201.56,0.03]
[1756501717919,5.62105571,201.57,201.56,0.03]
[1756501718224,14.56298255,201.57,201.56,0.03]
[1756501720924,40.56298255,201.57,201.56,0.03]
[1756501721311,82.44298255,201.57,201.56,0.03]
[1756501722545,56.44298255,201.57,201.55,0.2]
[1756501722750,8.94192684,201.56,201.55,1e-08]
[1756501723228,9.60192684,201.56,201.55,1e-08]
[1756501724237,28.15882269,201.56,201.55,1e-08]
[1756501724735,70.03882269,201.56,201.55,1e-08]
[1756501724921,56.44322868,201.56,201.55,1e-08]
[1756501726526,13.90322868,201.56,201.55,1e-08]
[1756501726730,8.94192684,201.56,201.55,1e-08]
[1756501728249,13.90322868,201.56,201.55,1e-08]
[1756501728436,13.90294119,201.58,201.55,1e-08]
[1756501728636,41.86,201.59,201.55,9.60192685]
[1756501728831,132.26,201.63,201.55,9.60192685]
[1756501729036,8.94192684,201.6,201.55,0.66000001]
[1756501729333,41.86,201.6,201.56,8.94192684]
[1756501729639,50.80192684,201.6,201.55,0.66000001]
[1756501730022,41.86,201.6,201.56,0.66]
[1756501730222,13.90200608,201.61,201.55,8.94192685]
[1756501730427,8.94192684,201.6,201.55,1e-08]
[1756501730935,50.80192684,201.62,201.57,8.94192684]
[1756501731129,8.94192684,201.63,201.58,9.60192684]
[1756501731434,55.82128723,201.64,201.59,9.60192684]
[1756501731634,81.82128723,201.64,201.59,9.60192684]
[1756501732030,82.48128723,201.64,201.59,0.66]
[1756501732237,8.94192684,201.63,201.57,9.60192684]
[1756501733438,81.82128723,201.64,201.58,8.94192684]
[1756501734246,72.87936039,201.64,201.6,8.94192684]
[1756501734550,72.87936039,201.64,201.59,8.94192684]
[1756501734720,72.87936039,201.64,201.59,9.60192684]
[1756501735146,41.92,201.64,201.6,9.60192684]
[1756501735353,41.92,201.64,201.61,8.94192684]
[1756501735847,0.06,201.64,201.61,9.60192684]
[1756501736346,0.06,201.64,201.63,8.94192684]
[1756501736731,0.06,201.64,201.63,9.60192684]
[1756501737845,0.06,201.64,201.63,23.19752085]
[1756501738229,0.06,201.64,201.63,28.15710027]
[1756501738425,0.06,201.64,201.63,19.21517343]
[1756501738654,0.06,201.64,201.63,9.60192684]
[1756501739151,0.06,201.64,201.63,5.61957942]
[1756501740060,0.06,201.64,201.63,28.15710027]
[1756501740226,0.06,201.64,201.63,9.60192684]
[1756501741435,0.06,201.64,201.63,14.56150626]
[1756501741633,0.06,201.64,201.63,28.15710027]
[1756501742539,0.06,201.64,201.63,26.68]
[1756501742751,0.06,201.64,201.63,49.21752085]
[1756501743143,0.06,201.64,201.63,40.27559401]
[1756501743344,0.06,201.64,201.63,48.53752085]
[1756501744253,0.06,201.64,201.62,8.94192684]
[1756501744550,0.06,201.64,201.63,8.94192684]
[1756501745546,0.73,201.64,201.6,8.94192684]
[1756501745755,0.73,201.64,201.57,13.59559401]
[1756501745756,0.67,201.63,201.56,0.68]
[1756501745945,0.67,201.63,201.59,8.94192684]
[1756501746139,0.67,201.63,201.6,8.94192684]
[1756501746361,0.06,201.64,201.62,8.94192684]
[1756501746959,0.06,201.64,201.63,8.94192684]
[1756501748154,0.06,201.64,201.62,8.94192684]
[1756501748353,0.06,201.64,201.63,8.94192684]
[1756501749536,0.06,201.64,201.6,5.6401357]
[1756501749839,0.06,201.64,201.63,8.94192684]
[1756501750953,0.06,201.64,201.59,4.96053975]
[1756501751149,0.06,201.64,201.61,8.94192684]
[1756501751941,0.06,201.64,201.62,8.94192684]
[1756501752153,0.06,201.64,201.53,8.97192684]
[1756501752154,26.0,201.62,201.53,8.97192684]
[1756501752451,8.94192684,201.58,201.53,0.03]
[1756501752775,8.94192684,201.57,201.53,0.03]
[1756501752939,8.94192684,201.56,201.53,0.03]
[1756501753462,9.61192684,201.56,201.53,0.03]
[1756501754246,14.57322868,201.56,201.53,0.03]
[1756501754445,40.57322868,201.56,201.53,0.03]
[1756501754644,26.0,201.54,201.53,0.03]
[1756501754846,34.94192684,201.54,201.53,0.03]
[1756501755046,13.59559401,201.53,201.51,0.03]
[1756501755353,34.94192684,201.52,201.51,0.03]
[1756501755552,35.61192684,201.52,201.51,0.03]
[1756501756266,40.57421346,201.52,201.51,0.03]
[1756501759466,8.94192684,201.53,201.51,0.03]
[1756501759666,8.94192684,201.56,201.51,0.71]
[1756501759871,8.94192684,201.56,201.52,0.68]
[1756501760369,8.94192684,201.59,201.53,9.62192684]
[1756501760558,8.94192684,201.58,201.53,0.68]
[1756501760758,8.94192684,201.58,201.54,0.68]
[1756501760959,8.94192684,201.58,201.55,0.68]
[1756501761357,8.94192684,201.56,201.51,0.03]
[1756501761554,8.94192684,201.53,201.51,0.03]
[1756501761754,8.94192684,201.54,201.51,0.03]
[1756501761957,8.94192684,201.56,201.52,0.68]
[1756501762161,8.94192684,201.56,201.51,0.03]
[1756501762366,8.94192684,201.55,201.51,0.71]
[1756501762680,8.94192684,201.55,201.51,0.03]
[1756501763556,5.02113791,201.57,201.51,0.71]
[1756501763754,8.94192684,201.55,201.51,0.03]
[1756501764160,8.94192684,201.55,201.51,0.71]
[1756501764659,8.94192684,201.55,201.51,0.03]
[1756501764875,0.67,201.54,201.51,0.03]
[1756501765063,9.61192684,201.54,201.51,0.03]
[1756501765263,8.94192684,201.52,201.51,0.03]
[1756501765476,13.90421346,201.52,201.51,0.03]
[1756501765664,14.57421346,201.52,201.51,0.03]
[1756501766878,9.61192684,201.52,201.51,0.03]
[1756501767290,8.94192684,201.52,201.51,0.03]
[1756501768489,0.67,201.52,201.51,0.03]
[1756501768658,8.94192684,201.52,201.51,0.03]
[1756501769059,9.61192684,201.52,201.51,0.03]
[1756501770062,14.57421346,201.52,201.51,0.03]
[1756501771155,8.94192684,201.52,201.51,0.03]
[1756501772481,8.94192684,201.53,201.51,0.03]
[1756501772988,9.64192684,201.52,201.51,0.03]
[1756501773284,9.64192684,201.52,201.5,0.03]
[1756501773285,51.40192684,201.52,201.5,0.03]
[1756501773484,8.94192684,201.51,201.5,0.03]
[1756501773782,50.70192684,201.51,201.5,0.03]
[1756501773991,51.40192684,201.51,201.5,0.03]
[1756501774168,56.36445971,201.51,201.5,0.03]
[1756501774472,26.0,201.49,201.48,0.03]
[1756501774673,34.94192684,201.49,201.48,0.03]
[1756501774986,35.64192684,201.49,201.48,0.03]
[1756501775998,35.64192684,201.49,201.46,0.03]
[1756501776282,8.94192684,201.47,201.46,0.03]
[1756501776790,9.64192684,201.47,201.46,0.03]
[1756501776966,51.40192684,201.47,201.46,0.03]
[1756501777169,72.72327178,201.48,201.46,0.03]
[1756501777369,8.94192684,201.47,201.46,0.03]
[1756501778491,14.60544498,201.47,201.46,0.03]
[1756501778672,13.90544498,201.47,201.46,0.03]
[1756501778872,4.96351814,201.47,201.46,0.03]
[1756501779276,13.90544498,201.47,201.46,0.03]
[1756501779579,8.94192684,201.47,201.46,0.03]
[1756501780185,13.90544498,201.47,201.46,0.03]
[1756501781394,11.26343705,201.47,201.46,0.03]
[1756501781894,26.0,201.44,201.43,0.03]
[1756501782134,13.59559401,201.37,201.36,1e-08]
[1756501782337,26.0,201.35,201.32,0.03]
[1756501782637,36.56639519,201.35,201.32,0.03]
[1756501782806,37.26639519,201.35,201.32,0.03]
[1756501783331,40.63776348,201.35,201.32,0.03]
[1756501784209,54.23335749,201.35,201.32,0.03]
[1756501784598,61.17174633,201.35,201.32,0.03]
[1756501785836,102.91174633,201.35,201.32,0.03]
[1756501786035,22.56688121,201.34,201.32,0.03]
[1756501786437,23.26688121,201.34,201.32,0.03]
[1756501786742,28.23360416,201.34,201.32,0.03]
[1756501786936,5.66672295,201.34,201.32,0.03]
[1756501787147,8.9712872,201.34,201.32,0.03]
[1756501788632,13.93801015,201.34,201.32,0.03]
[1756501788944,41.74,201.36,201.32,0.03]
[1756501789143,8.9712872,201.35,201.32,0.03]
[1756501789326,8.9712872,201.34,201.32,0.03]
[1756501789530,50.7112872,201.34,201.32,0.03]
[1756501790949,55.67801015,201.34,201.32,0.03]
[1756501792949,50.7112872,201.34,201.32,0.03]
[1756501793141,55.67801015,201.34,201.32,0.03]
[1756501793959,47.40672295,201.34,201.32,0.03]
[1756501794163,56.37801015,201.34,201.32,0.03]
[1756501795934,69.97360416,201.34,201.32,0.03]
[1756501796654,27.53385086,201.33,201.32,0.03]
[1756501796855,28.23385086,201.33,201.32,0.03]
[1756501797848,26.0,201.3,201.25,0.72]
[1756501798165,40.65127498,201.33,201.22,0.72]
[1756501798166,34.9712872,201.26,201.22,0.72]
[1756501798530,34.9712872,201.26,201.23,0.72]
[1756501798733,8.9712872,201.25,201.23,0.72]
[1756501799234,39.9402007,201.26,201.23,0.72]
[1756501799431,30.9689135,201.26,201.2,9.6912872]
[1756501799655,30.9689135,201.26,201.21,0.72]
[1756501799956,26.0,201.26,201.22,9.6912872]
[1756501800159,26.0,201.26,201.22,8.9712872]
[1756501800462,13.11552631,201.37,201.25,8.9712872]
[1756501800754,26.0,201.31,201.29,8.9712872]
[1756501800960,5.0264951,201.35,201.3,9.6912872]
[1756501801335,0.06,201.35,201.33,8.9712872]
[1756501801550,0.06,201.35,201.31,8.9712872]
[1756501801756,8.9712872,201.33,201.28,0.72]
[1756501802060,55.71776348,201.35,201.29,9.6912872]
[1756501802260,8.9712872,201.34,201.29,9.6912872]
[1756501802462,8.9712872,201.34,201.3,0.72]
[1756501802761,50.7512872,201.35,201.31,0.72]
[1756501802966,50.7512872,201.35,201.27,0.72]
[1756501802967,8.9712872,201.32,201.27,0.72]
[1756501803149,8.9712872,201.31,201.27,0.72]
[1756501803470,8.9712872,201.31,201.25,9.6912872]
[1756501803769,8.9712872,201.31,201.26,8.9712872]
[1756501803973,4.96746311,201.31,201.27,0.72]
[1756501804275,4.96746311,201.31,201.21,39.59559401]
[1756501804276,26.0,201.33,201.3,8.9712872]
[1756501804435,46.68696838,201.34,201.3,0.72]
[1756501804866,55.65825558,201.34,201.3,0.72]
[1756501805459,52.29186709,201.34,201.3,0.72]
[1756501805647,5.60489871,201.33,201.24,4.96899516]
[1756501805855,26.06,201.35,201.29,5.60489871]
[1756501806057,26.06,201.35,201.24,30.9875667]
[1756501806058,0.06,201.35,201.34,5.60489871]